[Event "Campeonato de España Universitario Relámpago"]
[Site "Zaragoza, Spain"]
[Date "2024.04.24"]
[Round "8.1"]
[White "Lianes Garcia, Marcos"]
[Black "Vela Frago, Alberto"]
[Result "1/2-1/2"]
[TimeControl "3 min + 2 sg"]
[WhiteFideId "32060777"]
[BlackFideId "24531685"]
[WhiteElo "2382"]
[BlackElo "2203"]

1. g3 {[%clk 00:03:01]} {[%emt 00:00:03]} d5 {[%clk 00:03:03]} {[%emt
00:00:01]} 2. Bg2 {[%clk 00:03:02]} Nf6 {[%clk 00:03:03]} {[%emt 00:00:02]} 3.
c4 {[%clk 00:03:03]} {[%emt 00:00:01]} dxc4 {[%clk 00:02:58]} {[%emt 00:00:08]}
4. Qa4+ {[%clk 00:02:48]} {[%emt 00:00:17]} Nbd7 {[%clk 00:02:58]} {[%emt
00:00:01]} 5. Qxc4 {[%clk 00:02:43]} {[%emt 00:00:08]} a6 {[%clk 00:02:59]}
{[%emt 00:00:01]} 6. Qc2 {[%emt 00:00:08]} c5 {[%clk 00:02:55]} {[%emt
00:00:03]} 7. Nf3 {[%clk 00:02:40]} {[%emt 00:00:01]} Ra7 {[%clk 00:02:22]}
{[%emt 00:05:58]} 8. d4 {[%clk 00:02:23]} e6 {[%clk 00:02:23]} 9. O-O {[%clk
00:02:20]} b6 {[%clk 00:02:25]} 10. Rd1 {[%clk 00:02:19]} Bb7 {[%clk 00:02:19]}
11. Nc3 {[%clk 00:02:13]} Qa8 {[%clk 00:02:09]} 12. Ne1 {[%clk 00:01:31]} Bxg2
13. Nxg2 {[%clk 00:01:32]} cxd4 14. Rxd4 {[%clk 00:01:33]} Bc5 {[%clk
00:02:08]} 15. Rd1 {[%clk 00:01:32]} O-O {[%clk 00:02:06]} 16. Be3 {[%clk
00:01:30]} Rc7 {[%clk 00:01:57]} 17. a4 {[%clk 00:01:14]} Rfc8 {[%clk
00:01:41]} 18. Qb3 {[%clk 00:01:07]} Bxe3 19. Nxe3 {[%clk 00:01:07]} Nc5 {[%clk
00:01:35]} 20. Qb4 {[%clk 00:01:00]} Qc6 {[%clk 00:01:25]} 21. Qf4 {[%clk
00:00:43]} Nb3 {[%clk 00:01:23]} 22. Rab1 {[%clk 00:00:40]} b5 23. axb5 {[%clk
00:00:39]} axb5 {[%clk 00:01:23]} 24. Qb4 {[%clk 00:00:37]} Nc5 {[%clk
00:01:15]} 25. Qxb5 {[%clk 00:00:38]} Qa8 {[%clk 00:01:02]} 26. Ra1 {[%clk
00:00:38]} Qb8 27. Qxb8 {[%clk 00:00:20]} Rxb8 {[%clk 00:01:00]} 28. Rab1
{[%clk 00:00:21]} Nb3 {[%clk 00:00:51]} 29. Kg2 {[%clk 00:00:20]} g6 {[%clk
00:00:51]} 30. h4 {[%clk 00:00:20]} h5 {[%clk 00:00:51]} {[%emt 00:00:01]} 31.
Rd6 {[%clk 00:00:20]} {[%emt 00:00:01]} Na5 {[%clk 00:00:47]} {[%emt 00:00:07]}
32. Ra1 {[%clk 00:00:12]} {[%emt 00:00:10]} Nb3 {[%clk 00:00:36]} {[%emt
00:00:13]} 33. Raa6 {[%clk 00:00:08]} {[%emt 00:00:05]} Nc5 {[%clk 00:00:37]}
{[%emt 00:00:01]} 34. Ra2 {[%clk 00:00:09]} {[%emt 00:00:01]} Rcb7 {[%clk
00:00:37]} {[%emt 00:00:02]} 35. Nc4 {[%clk 00:00:10]} {[%emt 00:00:01]} Rb4
{[%clk 00:00:37]} {[%emt 00:00:02]} 36. Ne5 {[%clk 00:00:06]} {[%emt 00:00:06]}
Rxb2 {[%clk 00:00:35]} {[%emt 00:00:04]} 37. Rxb2 {[%clk 00:00:06]} {[%emt
00:00:02]} Rxb2 {[%clk 00:00:36]} 38. Rd8+ {[%clk 00:00:07]} Kg7 {[%clk
00:00:37]} 39. Rc8 {[%clk 00:00:08]} {[%emt 00:00:01]} Ncd7 {[%clk 00:00:34]}
{[%emt 00:00:04]} 40. Nxd7 {[%clk 00:00:08]} {[%emt 00:00:02]} Nxd7 {[%clk
00:00:35]} 41. Rc7 {[%clk 00:00:05]} {[%emt 00:00:06]} Nf6 {[%clk 00:00:36]}
{[%emt 00:00:01]} 42. Kf3 {[%clk 00:00:05]} {[%emt 00:00:02]} Rc2 {[%clk
00:00:36]} {[%emt 00:00:02]} 43. Nb5 {[%clk 00:00:03]} {[%emt 00:00:04]} Rb2
{[%clk 00:00:33]} {[%emt 00:00:05]} 44. Nd4 {[%clk 00:00:04]} {[%emt 00:00:01]}
Nd5 {[%clk 00:00:32]} {[%emt 00:00:03]} 45. Rd7 {[%clk 00:00:04]} {[%emt
00:00:02]} Kf6 {[%clk 00:00:31]} {[%emt 00:00:02]} 46. Ra7 {[%clk 00:00:05]}
{[%emt 00:00:02]} Rb4 {[%clk 00:00:31]} {[%emt 00:00:02]} 47. Nc6 {[%clk
00:00:06]} {[%emt 00:00:02]} Rb3+ {[%clk 00:00:32]} 48. e3 {[%clk 00:00:07]}
Rc3 {[%clk 00:00:18]} {[%emt 00:00:15]} 49. Nd4 {[%clk 00:00:08]} {[%emt
00:00:01]} Rc1 {[%clk 00:00:19]} {[%emt 00:00:02]} 50. Rb7 {[%clk 00:00:07]}
{[%emt 00:00:03]} Ra1 {[%clk 00:00:19]} {[%emt 00:00:02]} 51. Nc6 {[%clk
00:00:07]} {[%emt 00:00:02]} Rd1 {[%clk 00:00:16]} {[%emt 00:00:04]} 52. Nd4
{[%clk 00:00:06]} {[%emt 00:00:04]} Rd2 {[%clk 00:00:16]} {[%emt 00:00:02]} 53.
Ra7 {[%clk 00:00:05]} {[%emt 00:00:02]} Nc3 {[%clk 00:00:16]} {[%emt 00:00:02]}
54. Nb3 {[%clk 00:00:04]} {[%emt 00:00:04]} Rb2 {[%clk 00:00:17]} {[%emt
00:00:01]} 55. Nc1 {[%clk 00:00:05]} Rc2 {[%clk 00:00:15]} {[%emt 00:00:04]} 56.
Nd3 {[%clk 00:00:06]} Rd2 {[%clk 00:00:14]} {[%emt 00:00:03]} 57. Rd7 {[%clk
00:00:05]} {[%emt 00:00:03]} Nd1 {[%clk 00:00:12]} {[%emt 00:00:04]} 58. e4
{[%clk 00:00:04]} {[%emt 00:00:03]} Nxf2 {[%clk 00:00:12]} {[%emt 00:00:01]} 59.
e5+ {[%clk 00:00:05]} {[%emt 00:00:02]} Kg7 {[%clk 00:00:13]} {[%emt 00:00:01]}
60. Nc5 {[%clk 00:00:04]} {[%emt 00:00:03]} Rxd7 {[%clk 00:00:13]} {[%emt
00:00:02]} 61. Nxd7 {[%clk 00:00:05]} Nd3 {[%clk 00:00:14]} 62. Ke4 {[%clk
00:00:05]} {[%emt 00:00:02]} Nb4 {[%clk 00:00:15]} {[%emt 00:00:01]} 63. Nf6
{[%clk 00:00:05]} {[%emt 00:00:02]} Kf8 {[%clk 00:00:15]} {[%emt 00:00:02]} 64.
Nd7+ {[%clk 00:00:06]} {[%emt 00:00:02]} Ke7 65. Nf6 {[%emt 00:00:01]} Nc6
{[%clk 00:00:17]} 66. Ng8+ {[%emt 00:00:03]} Kd7 {[%clk 00:00:17]} 67. Nf6+
{[%clk 00:00:08]} {[%emt 00:00:01]} Kc7 {[%clk 00:00:18]} 68. Ne8+ {[%clk
00:00:09]} Kd8 {[%clk 00:00:18]} {[%emt 00:00:03]} 69. Nf6 {[%clk 00:00:10]}
{[%emt 00:00:01]} Ke7 {[%clk 00:00:17]} {[%emt 00:00:03]} 70. Ng8+ {[%clk
00:00:12]} {[%emt 00:00:01]} Kf8 {[%clk 00:00:18]} 71. Nf6 {[%clk 00:00:13]}
Ne7 {[%clk 00:00:20]} 72. Nd7+ {[%clk 00:00:10]} {[%emt 00:00:06]} Kg7 {[%clk
00:00:20]} 73. Nf6 {[%clk 00:00:11]} {[%emt 00:00:01]} Nf5 {[%clk 00:00:22]} 74.
Kf4 {[%clk 00:00:12]} {[%emt 00:00:01]} Nd4 {[%clk 00:00:22]} {[%emt 00:00:01]}
75. Ne8+ {[%clk 00:00:12]} {[%emt 00:00:02]} Kf8 {[%clk 00:00:15]} {[%emt
00:00:09]} 76. Nf6 {[%clk 00:00:13]} {[%emt 00:00:01]} Ke7 {[%clk 00:00:17]} 77.
Ng8+ {[%clk 00:00:14]} {[%emt 00:00:02]} Kd7 {[%clk 00:00:18]} {[%emt
00:00:01]} 78. Nf6+ {[%clk 00:00:15]} Kd8 {[%clk 00:00:11]} {[%emt 00:00:08]}
79. Ke4 {[%clk 00:00:14]} {[%emt 00:00:03]} Nc6 {[%clk 00:00:12]} {[%emt
00:00:01]} 80. Kf4 {[%clk 00:00:12]} {[%emt 00:00:04]} Ne7 {[%clk 00:00:13]}
{[%emt 00:00:01]} 81. Ke4 {[%clk 00:00:14]} Kc7 {[%clk 00:00:13]} {[%emt
00:00:02]} 82. Nh7 {[%clk 00:00:13]} {[%emt 00:00:03]} Kd7 {[%clk 00:00:08]}
{[%emt 00:00:06]} 83. Nf6+ {[%clk 00:00:14]} Kd8 {[%clk 00:00:10]} 84. Nh7
{[%clk 00:00:15]} {[%emt 00:00:02]} Nd5 {[%clk 00:00:09]} {[%emt 00:00:03]} 85.
Ng5 {[%clk 00:00:12]} {[%emt 00:00:05]} Ke7 {[%clk 00:00:10]} 86. Nf3 {[%clk
00:00:13]} {[%emt 00:00:01]} f6 {[%clk 00:00:10]} {[%emt 00:00:02]} 87. exf6+
{[%clk 00:00:11]} {[%emt 00:00:03]} Kxf6 {[%clk 00:00:12]} 88. Ng5 {[%clk
00:00:10]} {[%emt 00:00:03]} Ne7 {[%clk 00:00:12]} {[%emt 00:00:01]} 89. Nh7+
{[%clk 00:00:09]} {[%emt 00:00:03]} Kg7 {[%clk 00:00:12]} {[%emt 00:00:02]} 90.
Ng5 {[%clk 00:00:11]} Nf5 {[%clk 00:00:12]} {[%emt 00:00:03]} 91. Kf4 {[%clk
00:00:07]} {[%emt 00:00:06]} Kf6 {[%clk 00:00:12]} {[%emt 00:00:02]} 92. Ne4+
{[%clk 00:00:08]} Kg7 {[%clk 00:00:11]} {[%emt 00:00:03]} 93. Ke5 {[%clk
00:00:07]} {[%emt 00:00:03]} Ne3 {[%clk 00:00:05]} {[%emt 00:00:07]} 94. Kxe6
{[%clk 00:00:07]} {[%emt 00:00:02]} Ng4 {[%clk 00:00:06]} {[%emt 00:00:01]} 95.
Ng5 {[%clk 00:00:07]} {[%emt 00:00:02]} Nh6 {[%clk 00:00:06]} {[%emt 00:00:02]}
96. Ke5 {[%clk 00:00:08]} {[%emt 00:00:02]} Nf5 {[%clk 00:00:07]} {[%emt
00:00:01]} 97. Kf4 {[%clk 00:00:06]} {[%emt 00:00:04]} Kf6 {[%clk 00:00:09]} 98.
Ne4+ {[%clk 00:00:07]} Kg7 {[%clk 00:00:10]} 99. Kg5 {[%clk 00:00:07]} {[%emt
00:00:02]} Nd4 {[%clk 00:00:10]} {[%emt 00:00:02]} 100. Kf4 {[%clk 00:00:06]}
{[%emt 00:00:02]} Ne6+ {[%clk 00:00:12]} 101. Ke5 {[%clk 00:00:07]} Nf8 {[%clk
00:00:11]} {[%emt 00:00:03]} 102. Ng5 {[%clk 00:00:06]} {[%emt 00:00:03]} Nd7+
{[%clk 00:00:11]} {[%emt 00:00:02]} 103. Kf4 {[%clk 00:00:06]} {[%emt
00:00:03]} Nf6 {[%clk 00:00:12]} {[%emt 00:00:01]} 104. Ke5 {[%clk 00:00:05]}
{[%emt 00:00:03]} Ng4+ {[%clk 00:00:12]} 105. Ke4 {[%clk 00:00:04]} {[%emt
00:00:03]} Nf6+ {[%clk 00:00:13]} {[%emt 00:00:01]} 106. Kf4 {[%clk 00:00:05]}
Ng4 {[%clk 00:00:12]} {[%emt 00:00:02]} 107. Ne4 {[%clk 00:00:06]} {[%emt
00:00:01]} Nh6 {[%clk 00:00:12]} {[%emt 00:00:02]} 108. Nd6 {[%clk 00:00:07]}
{[%emt 00:00:02]} Nf7 {[%clk 00:00:08]} {[%emt 00:00:06]} 109. Ne8+ {[%clk
00:00:06]} {[%emt 00:00:02]} Kf8 {[%clk 00:00:10]} 110. Nf6 Kg7 111. Ne4 {[%clk
00:00:07]} {[%emt 00:00:02]} Nh6 {[%clk 00:00:12]} 112. Nc5 {[%clk 00:00:07]}
{[%emt 00:00:03]} Nf7 {[%clk 00:00:12]} {[%emt 00:00:02]} 113. Nd7 {[%clk
00:00:06]} {[%emt 00:00:02]} Nh6 {[%clk 00:00:12]} {[%emt 00:00:02]} 114. Ne5
{[%clk 00:00:06]} {[%emt 00:00:03]} Nf5 {[%clk 00:00:11]} {[%emt 00:00:03]} 115.
Nf3 {[%clk 00:00:05]} {[%emt 00:00:02]} Ne7 {[%clk 00:00:12]} {[%emt 00:00:01]}
116. Ng5 {[%clk 00:00:05]} {[%emt 00:00:02]} Nd5+ {[%clk 00:00:13]} {[%emt
00:00:01]} 117. Ke5 {[%clk 00:00:06]} Nf6 {[%clk 00:00:11]} {[%emt 00:00:04]}
118. Ne6+ {[%clk 00:00:06]} {[%emt 00:00:03]} Kf7 119. Nd8+ {[%emt 00:00:01]}
Ke7 {[%clk 00:00:12]} {[%emt 00:00:02]} 120. Nc6+ {[%clk 00:00:09]} {[%emt
00:00:01]} Kf7 {[%clk 00:00:13]} 121. Nd4 {[%clk 00:00:09]} {[%emt 00:00:01]}
Nd7+ {[%clk 00:00:14]} {[%emt 00:00:02]} 122. Kf4 {[%clk 00:00:11]} Nf6 {[%clk
00:00:15]} 123. Nf3 {[%clk 00:00:11]} {[%emt 00:00:02]} Nd5+ {[%clk 00:00:14]}
{[%emt 00:00:02]} 124. Kg5 {[%clk 00:00:11]} {[%emt 00:00:02]} Ne7 {[%clk
00:00:13]} {[%emt 00:00:03]} 125. Nd4 {[%clk 00:00:12]} {[%emt 00:00:02]} Kg7
{[%clk 00:00:13]} {[%emt 00:00:02]} 126. Kf4 {[%clk 00:00:11]} {[%emt
00:00:02]} Kf6 {[%clk 00:00:13]} {[%emt 00:00:01]} 127. Nf3 {[%clk 00:00:12]}
{[%emt 00:00:02]} Nf5 {[%clk 00:00:13]} {[%emt 00:00:02]} 128. Ng5 {[%clk
00:00:12]} {[%emt 00:00:02]} Ne7 {[%clk 00:00:14]} {[%emt 00:00:01]} 129. Ne4+
{[%clk 00:00:13]} {[%emt 00:00:01]} Kg7 {[%clk 00:00:15]} 130. Kg5 {[%clk
00:00:12]} {[%emt 00:00:03]} Nd5 {[%clk 00:00:13]} {[%emt 00:00:03]} 131. Nd6
{[%clk 00:00:11]} {[%emt 00:00:03]} Nf6 {[%clk 00:00:12]} {[%emt 00:00:03]} 132.
Nc4 {[%clk 00:00:09]} {[%emt 00:00:04]} Nh7+ {[%clk 00:00:12]} {[%emt
00:00:01]} 133. Kf4 {[%clk 00:00:11]} Kf6 {[%clk 00:00:14]} 134. Nd6 {[%clk
00:00:09]} {[%emt 00:00:03]} g5+ {[%clk 00:00:15]} 135. hxg5+ {[%clk 00:00:10]}
{[%emt 00:00:02]} Nxg5 {[%clk 00:00:16]} 136. Ne8+ {[%clk 00:00:09]} {[%emt
00:00:03]} Kg6 {[%clk 00:00:17]} 137. Nc7 {[%clk 00:00:09]} {[%emt 00:00:02]}
Nf7 {[%clk 00:00:16]} {[%emt 00:00:03]} 138. Ne6 {[%clk 00:00:09]} {[%emt
00:00:02]} Kf6 {[%clk 00:00:17]} {[%emt 00:00:01]} 139. Nc5 {[%clk 00:00:10]}
{[%emt 00:00:02]} Nd6 {[%clk 00:00:12]} {[%emt 00:00:07]} 140. Nd7+ {[%clk
00:00:11]} {[%emt 00:00:02]} Ke6 {[%clk 00:00:11]} {[%emt 00:00:03]} 141. Ne5
{[%clk 00:00:10]} {[%emt 00:00:03]} Nf5 {[%clk 00:00:11]} {[%emt 00:00:02]} 142.
Ng6 {[%clk 00:00:10]} {[%emt 00:00:02]} Nxg3 {[%clk 00:00:12]} {[%emt
00:00:02]} 143. Kxg3 {[%clk 00:00:10]} {[%emt 00:00:01]} h4+ {[%clk 00:00:12]}
144. Kxh4 {[%clk 00:00:11]} {[%emt 00:00:01]} 1/2-1/2

[Event "Campeonato de España Universitario Relámpago"]
[Site "Zaragoza, Spain"]
[Date "2024.04.24"]
[Round "8.2"]
[White "Quintin Navarro, Alberto"]
[Black "Lopez Mulet, Inigo"]
[Result "1-0"]
[TimeControl "3 min + 2 sg"]
[WhiteFideId "2292688"]
[BlackFideId "22235620"]
[WhiteElo "2289"]
[BlackElo "2347"]

1. c4 {[%clk 00:03:03]} {[%emt 00:00:01]} e5 {[%clk 00:02:55]} {[%emt
00:00:09]} 2. Nc3 {[%clk 00:03:03]} {[%emt 00:00:01]} Bb4 {[%clk 00:02:57]}
{[%emt 00:00:01]} 3. Nd5 {[%clk 00:03:03]} {[%emt 00:00:01]} Bc5 {[%clk
00:02:58]} {[%emt 00:00:01]} 4. e3 {[%clk 00:03:01]} {[%emt 00:00:04]} Nf6
{[%clk 00:02:58]} {[%emt 00:00:02]} 5. b4 {[%clk 00:02:52]} {[%emt 00:00:11]}
Be7 {[%clk 00:02:21]} {[%emt 00:00:39]} 6. Nxe7 {[%clk 00:02:46]} {[%emt
00:00:07]} Qxe7 {[%clk 00:02:22]} {[%emt 00:05:34]} 7. Bb2 {[%clk 00:02:44]} d6
{[%clk 00:02:08]} 8. Nf3 {[%clk 00:02:30]} O-O {[%clk 00:01:48]} 9. Be2 {[%clk
00:02:30]} Bg4 {[%clk 00:01:43]} 10. h3 {[%clk 00:02:28]} Bh5 {[%clk 00:01:42]}
11. d3 {[%clk 00:02:20]} Nbd7 {[%clk 00:01:35]} 12. O-O {[%clk 00:02:18]} a5
{[%clk 00:01:21]} 13. a3 {[%clk 00:02:14]} c6 {[%clk 00:00:38]} 14. Qd2 {[%clk
00:01:55]} d5 {[%clk 00:00:23]} 15. cxd5 {[%clk 00:01:37]} cxd5 {[%clk
00:00:22]} 16. bxa5 {[%clk 00:01:18]} Rfd8 {[%clk 00:00:12]} 17. Qb4 {[%clk
00:01:03]} Qe6 {[%clk 00:00:08]} 18. Rfc1 {[%clk 00:00:40]} Qf5 {[%clk
00:00:06]} 19. Rc7 {[%clk 00:00:24]} e4 {[%clk 00:00:06]} 20. Nd4 {[%clk
00:00:19]} {[%emt 00:00:05]} Qg5 {[%clk 00:00:07]} {[%emt 00:00:01]} 21. Bxh5
{[%clk 00:00:19]} {[%emt 00:00:01]} Qxh5 {[%clk 00:00:07]} {[%emt 00:00:02]} 22.
dxe4 {[%clk 00:00:16]} {[%emt 00:00:04]} dxe4 {[%clk 00:00:08]} {[%emt
00:00:02]} 23. Rxb7 {[%clk 00:00:12]} {[%emt 00:00:07]} Ne5 {[%clk 00:00:09]}
{[%emt 00:00:01]} 24. Qd2 {[%clk 00:00:05]} {[%emt 00:00:08]} Nd3 {[%clk
00:00:09]} {[%emt 00:00:02]} 25. Bc3 {[%clk 00:00:06]} {[%emt 00:00:01]} Nd5
{[%clk 00:00:09]} {[%emt 00:00:02]} 26. Bb4 {[%clk 00:00:06]} {[%emt 00:00:01]}
Ra6 {[%clk 00:00:10]} {[%emt 00:00:01]} 27. Qd1 {[%clk 00:00:05]} {[%emt
00:00:03]} Qg5 {[%clk 00:00:11]} {[%emt 00:00:01]} 28. Qg4 {[%clk 00:00:06]}
Qf6 {[%clk 00:00:11]} {[%emt 00:00:03]} 29. Rf1 {[%clk 00:00:05]} {[%emt
00:00:02]} Re8 {[%clk 00:00:10]} {[%emt 00:00:03]} 30. Qe2 {[%clk 00:00:05]}
{[%emt 00:00:02]} h6 {[%clk 00:00:08]} {[%emt 00:00:04]} 31. Qh5 {[%clk
00:00:05]} {[%emt 00:00:01]} N5xb4 {[%clk 00:00:07]} {[%emt 00:00:03]} 32. axb4
{[%clk 00:00:07]} Re5 {[%clk 00:00:08]} {[%emt 00:00:01]} 33. Qg4 {[%clk
00:00:06]} {[%emt 00:00:02]} Kh7 {[%clk 00:00:08]} {[%emt 00:00:02]} 34. Rc7
{[%clk 00:00:05]} {[%emt 00:00:03]} Rd6 {[%clk 00:00:08]} {[%emt 00:00:02]} 35.
b5 {[%clk 00:00:05]} {[%emt 00:00:02]} Nc5 {[%clk 00:00:08]} {[%emt 00:00:02]}
36. b6 {[%clk 00:00:05]} {[%emt 00:00:02]} Rg5 {[%clk 00:00:08]} {[%emt
00:00:01]} 37. Qe2 {[%clk 00:00:05]} {[%emt 00:00:03]} Qg6 {[%clk 00:00:09]}
{[%emt 00:00:01]} 38. g3 {[%clk 00:00:05]} {[%emt 00:00:02]} Nd3 {[%clk
00:00:09]} 39. b7 {[%clk 00:00:04]} {[%emt 00:00:03]} Rd8 {[%clk 00:00:09]}
{[%emt 00:00:02]} 40. Rc8 {[%clk 00:00:05]} Rxg3+ {[%clk 00:00:08]} {[%emt
00:00:03]} 41. fxg3 {[%clk 00:00:06]} Qxg3+ {[%clk 00:00:09]} {[%emt 00:00:01]}
42. Qg2 {[%clk 00:00:07]} {[%emt 00:00:01]} Qxe3+ {[%clk 00:00:09]} {[%emt
00:00:02]} 43. Kh1 {[%clk 00:00:08]} {[%emt 00:00:01]} Qxd4 {[%clk 00:00:07]}
{[%emt 00:00:05]} 44. b8=Q {[%clk 00:00:08]} {[%emt 00:00:01]} Rxc8 {[%clk
00:00:06]} {[%emt 00:00:03]} 45. Qxc8 {[%clk 00:00:09]} f6 {[%clk 00:00:05]}
{[%emt 00:00:03]} 46. Qf5+ {[%clk 00:00:10]} {[%emt 00:00:01]} Kh8 {[%clk
00:00:06]} {[%emt 00:00:01]} 47. Qfxe4 {[%clk 00:00:11]} {[%emt 00:00:02]} 1-0

[Event "Campeonato de España Universitario Relámpago"]
[Site "Zaragoza, Spain"]
[Date "2024.04.24"]
[Round "8.3"]
[White "Fernandez Lopez, Ruben"]
[Black "Luque Saiz, Andres"]
[Result "1-0"]
[TimeControl "3 min + 2 sg"]
[WhiteFideId "24518298"]
[BlackFideId "24510793"]
[WhiteElo "2262"]
[BlackElo "2346"]

1. e4 {[%clk 00:03:04]} {[%emt 00:10:30]} c5 {[%clk 00:03:00]} {[%emt
00:00:05]} 2. Nf3 a6 3. c3 {[%clk 00:03:05]} {[%emt 00:00:02]} d5 {[%clk
00:03:02]} {[%emt 00:00:01]} 4. exd5 {[%clk 00:03:06]} {[%emt 00:00:01]} Qxd5
{[%clk 00:03:03]} 5. d4 {[%clk 00:03:07]} Nf6 {[%clk 00:02:49]} {[%emt
00:00:16]} 6. Be2 {[%clk 00:03:07]} e6 {[%clk 00:02:49]} {[%emt 00:00:02]} 7.
O-O {[%clk 00:03:08]} {[%emt 00:00:01]} cxd4 {[%clk 00:02:42]} {[%emt
00:00:09]} 8. cxd4 {[%clk 00:03:09]} Nc6 {[%clk 00:02:39]} {[%emt 00:00:06]} 9.
Nc3 {[%clk 00:03:10]} Qd6 {[%clk 00:02:34]} {[%emt 00:00:07]} 10. Bg5 {[%clk
00:03:02]} {[%emt 00:00:10]} Be7 {[%clk 00:02:35]} {[%emt 00:00:01]} 11. Re1
{[%clk 00:02:47]} {[%emt 00:05:45]} O-O {[%clk 00:02:33]} 12. Bd3 {[%clk
00:02:43]} h6 {[%clk 00:02:27]} 13. Bh4 {[%clk 00:02:36]} Rd8 {[%clk 00:02:17]}
14. Ne4 Nxe4 {[%clk 00:01:56]} 15. Bxe7 Qxe7 {[%clk 00:01:44]} 16. Bxe4 {[%clk
00:01:52]} Qd6 {[%clk 00:01:21]} 17. Bxc6 Qxc6 {[%clk 00:01:22]} 18. Rc1 {[%clk
00:01:47]} Qd6 {[%clk 00:01:19]} 19. Qb3 {[%clk 00:01:46]} Rb8 {[%clk
00:01:14]} 20. Ne5 {[%clk 00:01:15]} Bd7 {[%clk 00:01:15]} 21. Red1 {[%clk
00:00:59]} Be8 {[%clk 00:00:59]} 22. a4 {[%clk 00:00:55]} Qd5 {[%clk 00:00:50]}
23. Qb4 {[%clk 00:00:55]} Qd6 {[%clk 00:00:41]} 24. Qb3 {[%clk 00:00:48]} b5
{[%clk 00:00:25]} 25. a5 {[%clk 00:00:45]} Rbc8 {[%clk 00:00:26]} 26. Rxc8
{[%clk 00:00:41]} Rxc8 27. h3 {[%clk 00:00:41]} Qc7 {[%clk 00:00:19]} 28. Qb4
{[%clk 00:00:34]} {[%emt 00:00:07]} Qc2 {[%clk 00:00:19]} {[%emt 00:00:03]} 29.
Re1 {[%clk 00:00:33]} {[%emt 00:00:03]} Qc7 {[%clk 00:00:15]} {[%emt 00:00:06]}
30. Re3 {[%clk 00:00:12]} {[%emt 00:00:22]} Qc1+ {[%emt 00:00:08]} 31. Kh2 f6
{[%clk 00:00:06]} {[%emt 00:00:05]} 32. Nf3 {[%clk 00:00:14]} {[%emt 00:00:02]}
Qc7+ {[%clk 00:00:07]} {[%emt 00:00:01]} 33. g3 {[%clk 00:00:14]} {[%emt
00:00:01]} Qd7 {[%clk 00:00:08]} {[%emt 00:00:02]} 34. h4 {[%clk 00:00:13]}
{[%emt 00:00:03]} Bf7 {[%emt 00:00:04]} 35. Rc3 {[%clk 00:00:12]} Rd8 {[%clk
00:00:08]} {[%emt 00:00:02]} 36. Rc5 {[%clk 00:00:11]} {[%emt 00:00:03]} Bh5
{[%emt 00:00:29]} 37. Rxh5 {[%clk 00:00:11]} {[%emt 00:00:02]} Qc6 {[%clk
00:00:08]} {[%emt 00:00:01]} 38. Qc3 {[%clk 00:00:10]} {[%emt 00:00:03]} Qe4
{[%clk 00:00:09]} 39. Rc5 {[%clk 00:00:09]} {[%emt 00:00:03]} f5 {[%clk
00:00:06]} {[%emt 00:00:05]} 40. Rc8 {[%clk 00:00:09]} {[%emt 00:00:02]} Rxc8
{[%clk 00:00:07]} {[%emt 00:00:01]} 41. Qxc8+ Kh7 {[%emt 00:00:01]} 42. Qc3
{[%clk 00:00:10]} f4 {[%clk 00:00:07]} {[%emt 00:00:04]} 43. Ne5 {[%clk
00:00:10]} {[%emt 00:00:03]} fxg3+ {[%clk 00:00:05]} {[%emt 00:00:04]} 44. Qxg3
{[%clk 00:00:11]} Qxd4 {[%emt 00:00:02]} 45. Qd3+ Qxd3 {[%clk 00:00:07]} 46.
Nxd3 {[%clk 00:00:14]} 1-0

[Event "Campeonato de España Universitario Relámpago"]
[Site "Zaragoza, Spain"]
[Date "2024.04.24"]
[Round "8.4"]
[White "Domingo Nunez, Alejandro"]
[Black "Quispe Arteaga, Gabriel"]
[Result "1/2-1/2"]
[TimeControl "3 min + 2 sg"]
[WhiteFideId "22245561"]
[BlackFideId "32059809"]
[WhiteElo "2252"]
[BlackElo "2304"]

1. e4 {[%clk 00:03:02]} {[%emt 00:07:04]} c5 {[%clk 00:03:02]} 2. d4 {[%clk
00:03:02]} {[%emt 00:00:02]} b6 {[%clk 00:03:02]} {[%emt 00:00:06]} 3. d5
{[%clk 00:03:02]} {[%emt 00:00:02]} g6 {[%clk 00:03:02]} {[%emt 00:00:01]} 4.
c4 {[%clk 00:03:02]} Bg7 {[%clk 00:03:02]} {[%emt 00:00:02]} 5. f4 {[%clk
00:03:02]} {[%emt 00:00:01]} d6 {[%clk 00:03:02]} 6. Nf3 {[%clk 00:03:02]} Bg4
{[%clk 00:03:02]} {[%emt 00:00:02]} 7. Be2 {[%clk 00:03:02]} {[%emt 00:00:01]}
Bxf3 {[%clk 00:03:02]} {[%emt 00:00:02]} 8. Bxf3 {[%clk 00:03:02]} {[%emt
00:00:01]} Nf6 {[%clk 00:03:02]} {[%emt 00:00:20]} 9. Nc3 {[%clk 00:03:02]}
{[%emt 00:00:02]} O-O {[%clk 00:03:02]} {[%emt 00:00:02]} 10. O-O {[%clk
00:03:02]} {[%emt 00:00:02]} Nbd7 {[%clk 00:03:02]} {[%emt 00:00:03]} 11. Re1
{[%clk 00:03:02]} {[%emt 00:00:02]} Ne8 {[%clk 00:03:02]} {[%emt 00:00:01]} 12.
Qc2 {[%clk 00:03:02]} {[%emt 00:05:49]} Rb8 {[%clk 00:03:02]} 13. b3 {[%clk
00:03:02]} a6 {[%clk 00:03:02]} 14. a4 {[%clk 00:03:02]} e5 {[%clk 00:03:02]}
15. f5 {[%clk 00:03:02]} Bf6 {[%clk 00:03:02]} 16. Qd2 {[%clk 00:03:02]} Ng7
{[%clk 00:03:02]} 17. g4 {[%clk 00:03:02]} g5 {[%clk 00:02:48]} 18. h4 {[%clk
00:02:37]} h6 {[%clk 00:02:47]} 19. h5 {[%clk 00:02:07]} a5 {[%clk 00:02:43]}
20. Nb5 {[%clk 00:02:04]} 1/2-1/2